Workbook

Sheet Liquiditätsplanung
A1: Liquiditätsplanung (Angaben in Euro)
A3: Startmonat (Datum, 1. des Monats) | B3: 2026-01-01 | C3: USt-Satz (z.B. 0,19) | E3: 19.00% | F3: Wareneinsatz-Quote (z.B. 0,40) | H3: 40.00% | I3: Limit Überziehungskredit | K3: € 10,000.00
A5: Position | B5: ="Ist " & TEXT($B$3,"mm/yyyy") -> Ist 01/yyyy | C5: ="Plan " & TEXT(EDATE($B$3,1),"mm/yyyy") -> Plan 02/yyyy | D5: ="Plan " & TEXT(EDATE($B$3,2),"mm/yyyy") -> Plan 03/yyyy | E5: ="Plan " & TEXT(EDATE($B$3,3),"mm/yyyy") -> Plan 04/yyyy | F5: ="Plan " & TEXT(EDATE($B$3,4),"mm/yyyy") -> Plan 05/yyyy | G5: ="Plan " & TEXT(EDATE($B$3,5),"mm/yyyy") -> Plan 06/yyyy | H5: ="Plan " & TEXT(EDATE($B$3,6),"mm/yyyy") -> Plan 07/yyyy | I5: ="Plan " & TEXT(EDATE($B$3,7),"mm/yyyy") -> Plan 08/yyyy | J5: ="Plan " & TEXT(EDATE($B$3,8),"mm/yyyy") -> Plan 09/yyyy | K5: ="Plan " & TEXT(EDATE($B$3,9),"mm/yyyy") -> Plan 10/yyyy | L5: ="Plan " & TEXT(EDATE($B$3,10),"mm/yyyy") -> Plan 11/yyyy | M5: ="Plan " & TEXT(EDATE($B$3,11),"mm/yyyy") -> Plan 12/yyyy | N5: ="Plan " & TEXT(EDATE($B$3,12),"mm/yyyy") -> Plan 01/yyyy
A7: Liquide Mittel am Anfang des Monats | B7: € 8,000.00 | C7: =B37 -> € 16,720.00 | D7: € 24,060.00 | E7: € 31,725.00 | F7: € 39,850.00 | G7: € 47,895.00 | H7: € 56,555.00 | I7: € 64,190.00 | J7: € 74,535.00 | K7: € 84,500.00 | L7: € 93,925.00 | M7: € 104,570.00 | N7: € 115,780.00
A9: Einzahlungen
A10: Umsatz (inkl. USt) | B10: € 22,000.00 | C10: € 24,000.00 | D10: € 25,500.00 | E10: € 26,500.00 | F10: € 27,500.00 | G10: € 29,000.00 | H10: € 30,500.00 | I10: € 31,500.00 | J10: € 32,500.00 | K10: € 33,500.00 | L10: € 34,500.00 | M10: € 36,000.00 | N10: € 38,000.00
A11: Erträge aus Kapitalanlagen | B11: € 50.00 | C11: € 50.00 | D11: € 60.00 | E11: € 60.00 | F11: € 70.00 | G11: € 70.00 | H11: € 80.00 | I11: € 80.00 | J11: € 90.00 | K11: € 90.00 | L11: € 100.00 | M11: € 100.00 | N11: € 110.00
A12: Kreditaufnahme | B12: € 5,000.00
A13: Gründungszuschuss | B13: € 1,200.00 | C13: € 1,200.00 | D13: € 1,200.00
A14: Sonstige Einzahlungen | E14: € 500.00 | I14: € 800.00
A15: …..
A17: Summe Einzahlungen | B17: =SUM(B10:B15) -> € 28,250.00 | C17: =SUM(C10:C15) -> € 25,250.00 | D17: =SUM(D10:D15) -> € 26,760.00 | E17: =SUM(E10:E15) -> € 27,060.00 | F17: =SUM(F10:F15) -> € 27,570.00 | G17: =SUM(G10:G15) -> € 29,070.00 | H17: =SUM(H10:H15) -> € 30,580.00 | I17: =SUM(I10:I15) -> € 32,380.00 | J17: =SUM(J10:J15) -> € 32,590.00 | K17: =SUM(K10:K15) -> € 33,590.00 | L17: =SUM(L10:L15) -> € 34,600.00 | M17: =SUM(M10:M15) -> € 36,100.00 | N17: =SUM(N10:N15) -> € 38,110.00
A19: Auszahlungen
A20: Material und Betriebsstoffe | B20: =B10*$H$3 -> € 8,800.00 | C20: =C10*$H$3 -> € 9,600.00 | D20: =D10*$H$3 -> € 10,200.00 | E20: =E10*$H$3 -> € 10,600.00 | F20: =F10*$H$3 -> € 11,000.00 | G20: =G10*$H$3 -> € 11,600.00 | H20: =H10*$H$3 -> € 12,200.00 | I20: =I10*$H$3 -> € 12,600.00 | J20: =J10*$H$3 -> € 13,000.00 | K20: =K10*$H$3 -> € 13,400.00 | L20: =L10*$H$3 -> € 13,800.00 | M20: =M10*$H$3 -> € 14,400.00 | N20: =N10*$H$3 -> € 15,200.00
A21: Beratungskosten | B21: € 1,200.00 | C21: € 900.00 | D21: € 700.00 | E21: € 500.00 | F21: € 500.00 | G21: € 500.00 | H21: € 500.00 | I21: € 500.00 | J21: € 500.00 | K21: € 500.00 | L21: € 500.00 | M21: € 500.00 | N21: € 500.00
A22: Werbung, Marketing | B22: € 900.00 | C22: € 900.00 | D22: € 800.00 | E22: € 800.00 | F22: € 800.00 | G22: € 800.00 | H22: € 900.00 | I22: € 900.00 | J22: € 900.00 | K22: € 900.00 | L22: € 1,000.00 | M22: € 1,000.00 | N22: € 1,000.00
A23: Reparatur und Instandhaltung
A24: Versicherungen | B24: € 250.00 | C24: € 250.00 | D24: € 250.00 | E24: € 250.00 | F24: € 250.00 | G24: € 250.00 | H24: € 250.00 | I24: € 250.00 | J24: € 250.00 | K24: € 250.00 | L24: € 250.00 | M24: € 250.00 | N24: € 250.00
A25: Reisekosten | B25: € 200.00 | C25: € 250.00 | D25: € 250.00 | E25: € 300.00 | F25: € 300.00 | G25: € 300.00 | H25: € 350.00 | I25: € 350.00 | J25: € 350.00 | K25: € 400.00 | L25: € 400.00 | M25: € 450.00 | N25: € 450.00
A26: Investitionen | B26: € 3,000.00 | H26: € 1,500.00
A27: Kreditraten (Tilgung und Zinsen) | C27: € 450.00 | D27: € 450.00 | E27: € 450.00 | F27: € 450.00 | G27: € 450.00 | H27: € 450.00 | I27: € 450.00 | J27: € 450.00 | K27: € 450.00 | L27: € 450.00 | M27: € 450.00 | N27: € 450.00
A28: Privatentnahmen | B28: € 1,000.00 | C28: € 1,000.00 | D28: € 1,000.00 | E28: € 1,000.00 | F28: € 1,000.00 | G28: € 1,000.00 | H28: € 1,000.00 | I28: € 1,000.00 | J28: € 1,000.00 | K28: € 1,000.00 | L28: € 1,000.00 | M28: € 1,000.00 | N28: € 1,000.00
A29: Sonstige Auszahlungen | D29: € 600.00 | K29: € 900.00
A30: …..
A31: Umsatzsteuerzahlung | B31: =B10*$E$3 -> € 4,180.00 | C31: =C10*$E$3 -> € 4,560.00 | D31: =D10*$E$3 -> € 4,845.00 | E31: =E10*$E$3 -> € 5,035.00 | F31: =F10*$E$3 -> € 5,225.00 | G31: =G10*$E$3 -> € 5,510.00 | H31: =H10*$E$3 -> € 5,795.00 | I31: =I10*$E$3 -> € 5,985.00 | J31: =J10*$E$3 -> € 6,175.00 | K31: =K10*$E$3 -> € 6,365.00 | L31: =L10*$E$3 -> € 6,555.00 | M31: =M10*$E$3 -> € 6,840.00 | N31: =N10*$E$3 -> € 7,220.00
A33: Summe Auszahlungen | B33: =SUM(B20:B31) -> € 19,530.00 | C33: =SUM(C20:C31) -> € 17,910.00 | D33: =SUM(D20:D31) -> € 19,095.00 | E33: =SUM(E20:E31) -> € 18,935.00 | F33: =SUM(F20:F31) -> € 19,525.00 | G33: =SUM(G20:G31) -> € 20,410.00 | H33: =SUM(H20:H31) -> € 22,945.00 | I33: =SUM(I20:I31) -> € 22,035.00 | J33: =SUM(J20:J31) -> € 22,625.00 | K33: =SUM(K20:K31) -> € 24,165.00 | L33: =SUM(L20:L31) -> € 23,955.00 | M33: =SUM(M20:M31) -> € 24,890.00 | N33: =SUM(N20:N31) -> € 26,070.00
A35: Über-/ Unterdeckung pro Monat | B35: =B17-B33 -> € 8,720.00 | C35: =C17-C33 -> € 7,340.00 | D35: =D17-D33 -> € 7,665.00 | E35: =E17-E33 -> € 8,125.00 | F35: =F17-F33 -> € 8,045.00 | G35: =G17-G33 -> € 8,660.00 | H35: =H17-H33 -> € 7,635.00 | I35: =I17-I33 -> € 10,345.00 | J35: =J17-J33 -> € 9,965.00 | K35: =K17-K33 -> € 9,425.00 | L35: =L17-L33 -> € 10,645.00 | M35: =M17-M33 -> € 11,210.00 | N35: =N17-N33 -> € 12,040.00
A37: Liquide Mittel am Ende des Monats | B37: =B7+B17-B33 -> € 16,720.00 | C37: =C7+C17-C33 -> € 24,060.00 | D37: =D7+D17-D33 -> € 31,725.00 | E37: =E7+E17-E33 -> € 39,850.00 | F37: =F7+F17-F33 -> € 47,895.00 | G37: =G7+G17-G33 -> € 56,555.00 | H37: =H7+H17-H33 -> € 64,190.00 | I37: =I7+I17-I33 -> € 74,535.00 | J37: =J7+J17-J33 -> € 84,500.00 | K37: =K7+K17-K33 -> € 93,925.00 | L37: =L7+L17-L33 -> € 104,570.00 | M37: =M7+M17-M33 -> € 115,780.00 | N37: =N7+N17-N33 -> € 127,820.00
A39: Limit Überziehungskredit | B39: =$K$3 -> € 10,000.00 | C39: =$K$3 -> € 10,000.00 | D39: =$K$3 -> € 10,000.00 | E39: =$K$3 -> € 10,000.00 | F39: =$K$3 -> € 10,000.00 | G39: =$K$3 -> € 10,000.00 | H39: =$K$3 -> € 10,000.00 | I39: =$K$3 -> € 10,000.00 | J39: =$K$3 -> € 10,000.00 | K39: =$K$3 -> € 10,000.00 | L39: =$K$3 -> € 10,000.00 | M39: =$K$3 -> € 10,000.00 | N39: =$K$3 -> € 10,000.00
A41: Maximale Liquidität | B41: =B37+B39 -> € 26,720.00 | C41: € 34,060.00 | D41: € 41,725.00 | E41: € 49,850.00 | F41: € 57,895.00 | G41: € 66,555.00 | H41: € 74,190.00 | I41: € 84,535.00 | J41: € 94,500.00 | K41: € 103,925.00 | L41: € 114,570.00 | M41: € 125,780.00 | N41: € 137,820.00
A43: Zusätzlicher Liquiditätsbedarf (wenn < 0) | B43: =MAX(0,-B41) -> € 0.00 | C43: € 0.00 | D43: € 0.00 | E43: € 0.00 | F43: € 0.00 | G43: € 0.00 | H43: € 0.00 | I43: € 0.00 | J43: € 0.00 | K43: € 0.00 | L43: € 0.00 | M43: € 0.00 | N43: € 0.00
